fUSD/lending_fUSD_20250515
["ID","MTS","AMOUNT","RATE_DAILY","PERIOD"]
[361141141,1747302642958,-500.0,0.00011635,2]
[361141142,1747302642968,-400.0,0.00011635,2]
[361141143,1747302642978,-405.40647847,0.00011635,2]
[361141144,1747302642989,-230.93999108,0.00011635,2]
[361141145,1747302643000,-400.0,0.00011635,2]
[361141146,1747302643011,-400.0,0.00011635,2]
[361141147,1747302643023,-400.0,0.00011635,2]
[361141148,1747302643034,-400.0,0.00011635,2]
[361141149,1747302643045,-400.0,0.00011635,2]
[361141150,1747302643056,-400.0,0.00011635,2]
[361141151,1747302643068,-400.0,0.00011635,2]
[361141152,1747302643079,-400.0,0.00011635,2]
[361141153,1747302643091,-400.0,0.00011635,2]
[361141154,1747302643103,-413.39029736,0.00011635,2]
[361141155,1747302643115,-400.0,0.00011635,2]
[361141156,1747302643127,-405.83162102,0.00011635,2]
[361141157,1747302643139,-400.0,0.00011635,2]
[361141158,1747302643151,-400.0,0.00011635,2]
[361141159,1747302643163,-400.0,0.00011635,2]
[361141160,1747302643179,-725.35,0.00011635,2]
[361141161,1747302643192,-400.0,0.00011635,2]
[361141162,1747302643204,-400.0,0.00011635,2]
[361141163,1747302643216,-400.0,0.00011635,2]
[361141164,1747302643227,-400.0,0.00011635,2]
[361141165,1747302643239,-1156.0,0.00011635,2]
[361141166,1747302643251,-400.0,0.00011635,2]
[361141167,1747302643263,-400.0,0.00011635,2]
[361141170,1747302643275,-304.3956746,0.00011635,2]
[361141172,1747302643287,-190.84523715,0.00011635,2]
[361141174,1747302643299,-400.0,0.00011635,2]
[361141176,1747302643310,-400.0,0.00011635,2]
[361141178,1747302643322,-400.0,0.00011635,2]
[361141182,1747302643335,-400.0,0.00011635,2]
[361141185,1747302643346,-400.0,0.00011635,2]
[361141187,1747302643357,-383.98261672,0.00011635,2]
[361141188,1747302643368,-878.23,0.00011635,2]
[361141189,1747302643380,-404.47719929,0.00011635,2]
[361141190,1747302643391,-824.21,0.00011635,2]
[361141191,1747302643404,-400.0,0.00011635,2]
[361141193,1747302643416,-400.0,0.00011635,2]
[361141194,1747302643430,-405.37565342,0.00011635,2]
[361141195,1747302643441,-400.0,0.00011635,2]
[361141196,1747302643453,-400.0,0.00011635,2]
[361141197,1747302643465,-400.0,0.00011635,2]
[361141198,1747302643476,-400.0,0.00011635,2]
[361141199,1747302643488,-400.0,0.00011635,2]
[361141200,1747302643499,-400.0,0.00011635,2]
[361141201,1747302643510,-400.0,0.00011635,2]
[361141202,1747302643522,-400.0,0.00011635,2]
[361141203,1747302643534,-400.0,0.00011635,2]
[361141204,1747302643545,-400.0,0.00011635,2]
[361141205,1747302643557,-400.0,0.00011635,2]
[361141206,1747302643568,-400.0,0.00011635,2]
[361141207,1747302643580,-500.0,0.00011635,2]
[361141208,1747302643592,-400.0,0.00011635,2]
[361141209,1747302643603,-400.0,0.00011635,2]
[361141210,1747302643616,-400.0,0.00011635,2]
[361141211,1747302643628,-400.0,0.00011635,2]
[361141212,1747302643639,-400.0,0.00011635,2]
[361141213,1747302643650,-400.0,0.00011635,2]
[361141214,1747302643662,-408.2817709,0.00011635,2]
[361141215,1747302643673,-400.0,0.00011635,2]
[361141216,1747302643684,-400.0,0.00011635,2]
[361141217,1747302643696,-400.0,0.00011636,2]
[361141218,1747302643707,-400.0,0.00011636,2]
[361141219,1747302643718,-400.0,0.00011636,2]
[361141220,1747302643729,-400.0,0.00011636,2]
[361141221,1747302643741,-400.0,0.00011636,2]
[361141222,1747302643753,-400.0,0.00011636,2]
[361141223,1747302643764,-400.0,0.00011636,2]
[361141224,1747302643776,-414.56,0.00011636,2]
[361141225,1747302643787,-400.0,0.00011636,2]
[361141226,1747302643799,-400.0,0.00011636,2]
[361141227,1747302643812,-400.0,0.00011636,2]
[361141228,1747302643824,-400.0,0.00011636,2]
[361141229,1747302643835,-425.05,0.00011636,2]
[361141230,1747302643846,-400.0,0.00011636,2]
[361141231,1747302643859,-400.0,0.00011636,2]
[361141232,1747302643870,-400.0,0.00011636,2]
[361141233,1747302643883,-400.0,0.00011636,2]
[361141234,1747302643894,-402.81979258,0.00011636,2]
[361141235,1747302643907,-400.0,0.00011636,2]
[361141236,1747302643919,-400.0,0.00011636,2]
[361141237,1747302643932,-400.0,0.00011636,2]
[361141238,1747302643944,-400.0,0.00011636,2]
[361141239,1747302643956,-400.0,0.00011636,2]
[361141240,1747302643968,-400.0,0.00011636,2]
[361141241,1747302643979,-405.29100098,0.00011636,2]
[361141242,1747302643991,-400.0,0.00011636,2]
[361141243,1747302644002,-389.33647394,0.00011636,2]
[361141244,1747302644385,-166.96,0.00010639,2]
[361141245,1747302644396,-166.96,0.00011078,2]
[361141246,1747302644407,-166.96,0.00011517,2]
[361141247,1747302644418,-400.0,0.00011635,2]
[361141248,1747302644430,-453.46580332,0.00011635,2]
[361141249,1747302644441,-400.0,0.00011635,2]
[361141250,1747302644452,-10.66352606,0.00011636,2]
[361141251,1747302644463,-400.0,0.00011636,2]
[361141252,1747302644474,-400.0,0.00011636,2]
[361141253,1747302644486,-400.0,0.00011636,2]
[361141254,1747302644497,-400.0,0.00011636,2]
[361141255,1747302644509,-507.30664869,0.00011636,2]
[361141256,1747302644520,-400.0,0.00011636,2]
[361141257,1747302644533,-489.3723,0.00011636,2]
[361141258,1747302644544,-400.0,0.00011636,2]
[361141259,1747302644555,-400.0,0.00011636,2]
[361141260,1747302644566,-400.0,0.00011636,2]
[361141261,1747302644577,-395.9469144,0.00011636,2]
[361141262,1747302644588,-162.84766114,0.00011636,2]
[361141263,1747302644599,-514.06,0.00011636,2]
[361141264,1747302644610,-400.0,0.00011636,2]
[361141265,1747302644621,-397.68715395,0.00011636,2]
[361141266,1747302644632,-537.85927245,0.00011636,2]
[361141267,1747302644644,-400.0,0.00011636,2]
[361141268,1747302644662,-400.0,0.00011636,2]
[361141269,1747302644678,-400.0,0.00011636,2]
[361141270,1747302644691,-402.52,0.00011636,2]
[361141271,1747302644704,-401.91761853,0.00011636,2]
[361141272,1747302644716,-406.52983757,0.00011636,2]
[361141273,1747302644728,-400.0,0.00011636,2]
[361141274,1747302644741,-400.0,0.00011636,2]
[361141275,1747302644753,-400.6237316,0.00011636,2]
[361141276,1747302644765,-400.0,0.00011636,2]
[361141277,1747302644777,-400.0,0.00011636,2]
[361141278,1747302644789,-400.0,0.00011636,2]
[361141279,1747302644801,-253.13648382,0.00011636,2]
[361141280,1747302644813,-400.0,0.00011636,2]
[361141281,1747302644826,-400.0,0.00011636,2]
[361141282,1747302644838,-402.22758265,0.00011636,2]
[361141283,1747302644850,-400.0,0.00011636,2]
[361141284,1747302644862,-400.0,0.00011636,2]
[361141285,1747302644874,-400.0,0.00011636,2]
[361141286,1747302644887,-400.0,0.00011636,2]
[361141287,1747302644899,-504.98,0.00011636,2]
[361141288,1747302644910,-397.31487324,0.00011636,2]
[361141289,1747302644921,-400.0,0.00011636,2]
[361141290,1747302644934,-400.0,0.00011636,2]
[361141291,1747302644945,-400.0,0.00011636,2]
[361141292,1747302644956,-400.0,0.00011636,2]
[361141316,1747302645332,-400.0,0.00011636,2]
[361141321,1747302645364,-400.0,0.00011636,2]
[361141324,1747302645385,-400.0,0.00011636,2]
[361141326,1747302645395,-400.0,0.00011636,2]
[361141329,1747302645404,-201.59099784,0.00011636,2]
[361141332,1747302645414,-400.0,0.00011636,2]
[361141335,1747302645423,-400.0,0.00011636,2]
[361141337,1747302645433,-400.0,0.00011636,2]
[361141339,1747302645443,-400.0,0.00011636,2]
[361141341,1747302645452,-340.37979108,0.00011636,2]
[361141343,1747302645461,-783.92,0.00011636,2]
[361141345,1747302645470,-400.0,0.00011636,2]
[361141346,1747302645479,-403.6373129,0.00011636,2]
[361141348,1747302645489,-301.8982926,0.00011636,2]
[361141350,1747302645498,-400.0,0.00011636,2]
[361141352,1747302645507,-400.0,0.00011636,2]
[361141354,1747302645516,-400.0,0.00011636,2]
[361141356,1747302645526,-400.0,0.00011636,2]
[361141358,1747302645535,-400.0,0.00011636,2]
[361141360,1747302645545,-443.746,0.00011636,2]
[361141362,1747302645554,-400.0,0.00011636,2]
[361141364,1747302645564,-774.73,0.00011636,2]
[361141366,1747302645573,-400.0,0.00011636,2]
[361141367,1747302645583,-400.0,0.00011636,2]
[361141369,1747302645593,-593.3,0.00011636,2]
[361141371,1747302645602,-400.0,0.00011636,2]
[361141373,1747302645612,-400.0,0.00011636,2]
[361141375,1747302645621,-975.13,0.00011636,2]
[361141377,1747302645630,-193.69421666,0.00011636,2]
[361141379,1747302645639,-400.0,0.00011636,2]
[361141381,1747302645649,-620.49,0.00011636,2]
[361141383,1747302645659,-400.0,0.00011636,2]
[361141385,1747302645669,-400.0,0.00011636,2]
[361141387,1747302645678,-400.0,0.00011636,2]
[361141389,1747302645687,-400.0,0.00011636,2]
[361141391,1747302645697,-400.0,0.00011636,2]
[361141393,1747302645706,-400.0,0.00011636,2]
[361141395,1747302645716,-400.0,0.00011636,2]
[361141397,1747302645726,-780.21,0.00011636,2]
[361141399,1747302645735,-400.0,0.00011636,2]
[361141401,1747302645745,-400.0,0.00011636,2]
[361141403,1747302645755,-400.0,0.00011636,2]
[361141405,1747302645764,-400.0,0.00011636,2]
[361141407,1747302645774,-476.08,0.00011636,2]
[361141408,1747302645783,-400.0,0.00011636,2]
[361141409,1747302645793,-400.0,0.00011636,2]
[361141410,1747302645802,-400.0,0.00011636,2]
[361141411,1747302645812,-400.0,0.00011636,2]
[361141412,1747302645822,-400.0,0.00011636,2]
[361141413,1747302645831,-400.0,0.00011636,2]
[361141414,1747302645841,-400.0,0.00011636,2]
[361141415,1747302645850,-400.0,0.00011636,2]
[361141416,1747302645860,-288.78579003,0.00011636,2]
[361141417,1747302645869,-275.14310282,0.00011636,2]
[361141418,1747302645878,-500.0,0.00011636,2]
[361141419,1747302645887,-400.0,0.00011636,2]
[361141420,1747302645897,-400.0,0.00011636,2]
[361141421,1747302645909,-400.0,0.00011636,2]
[361141422,1747302645918,-268.51137919,0.00011636,2]
[361141423,1747302645928,-336.55391304,0.00011636,2]
[361141424,1747302645937,-400.0,0.00011636,2]
[361141425,1747302645946,-167.22577397,0.00011636,2]
[361141426,1747302645956,-400.0,0.00011636,2]
[361141427,1747302645965,-400.0,0.00011636,2]
[361141428,1747302645974,-400.0,0.00011636,2]
[361141429,1747302645984,-400.0,0.00011636,2]
[361141430,1747302645993,-452.70676913,0.00011636,2]
[361141431,1747302646002,-400.0,0.00011636,2]
[361141432,1747302646011,-400.0,0.00011636,2]
[361141433,1747302646020,-523.1,0.00011636,2]
[361141434,1747302646029,-400.0,0.00011636,2]
[361141435,1747302646039,-400.0,0.00011636,2]
[361141436,1747302646049,-479.33,0.00011636,2]
[361141437,1747302646058,-440.51,0.00011636,2]
[361141438,1747302646068,-400.0,0.00011636,2]
[361141439,1747302646077,-400.0,0.00011636,2]
[361141441,1747302646087,-724.45,0.00011636,2]
[361141442,1747302646097,-400.0,0.00011636,2]
[361141443,1747302646106,-267.94366166,0.00011636,2]
[361141444,1747302646116,-400.0,0.00011636,2]
[361141446,1747302646126,-400.0,0.00011636,2]
[361141448,1747302646135,-325.48210671,0.00011636,2]
[361141450,1747302646145,-400.0,0.00011636,2]
[361141452,1747302646154,-400.0,0.00011636,2]
[361141455,1747302646165,-400.0,0.00011636,2]
[361141457,1747302646176,-400.0,0.00011636,2]
[361141458,1747302646191,-343.04746918,0.00011636,2]
[361141461,1747302646201,-400.0,0.00011636,2]
[361141463,1747302646211,-400.0,0.00011636,2]
[361141465,1747302646220,-578.56,0.00011636,2]
[361141467,1747302646229,-400.0,0.00011636,2]
[361141469,1747302646238,-169.92655199,0.00011636,2]
[361141471,1747302646247,-400.0,0.00011636,2]
[361141473,1747302646257,-400.0,0.00011636,2]
[361141475,1747302646266,-400.0,0.00011636,2]
[361141477,1747302646276,-400.0,0.00011636,2]
[361141479,1747302646286,-400.0,0.00011636,2]
[361141481,1747302646295,-260.08837498,0.00011636,2]
[361141483,1747302646304,-459.81503688,0.00011636,2]
[361141485,1747302646313,-303.26415769,0.00011636,2]
[361141487,1747302646323,-400.0,0.00011636,2]
[361141489,1747302646332,-400.0,0.00011636,2]
[361141491,1747302646341,-394.40989423,0.00011636,2]
[361141505,1747302646473,-5.59010577,0.00011636,2]
[361141507,1747302646482,-400.0,0.00011636,2]
[361141509,1747302646491,-13.22567975,0.00011636,2]
[361141511,1747302646503,-386.77432025,0.00011636,2]
[361141512,1747302646513,-45.62374887,0.00011636,2]
[361141513,1747302646551,-354.37625113,0.00011636,2]
[361141514,1747302646560,-400.0,0.00011636,2]
[361141515,1747302646570,-400.0,0.00011636,2]
[361141516,1747302646580,-891.17,0.00011636,2]
[361141517,1747302646590,-400.0,0.00011636,2]
[361141518,1747302646600,-400.0,0.00011636,2]
[361141519,1747302646610,-400.0,0.00011636,2]
[361141520,1747302646619,-400.0,0.00011636,2]
[361141521,1747302646629,-400.0,0.00011636,2]
[361141522,1747302646639,-400.0,0.00011636,2]
[361141523,1747302646648,-400.0,0.00011636,2]
[361141524,1747302646658,-400.0,0.00011636,2]
[361141525,1747302646668,-400.0,0.00011636,2]
[361141527,1747302646680,-400.0,0.00011636,2]
[361141529,1747302646689,-400.0,0.00011636,2]
[361141530,1747302646699,-400.0,0.00011636,2]
[361141531,1747302646709,-400.0,0.00011636,2]
[361141532,1747302646719,-511.66,0.00011636,2]
[361141533,1747302646728,-114.58203557,0.00011636,2]
[361141534,1747302646749,-331.07,0.00011636,2]
[361141535,1747302646761,-213.87796443,0.00011636,2]
[361141536,1747302646770,-400.0,0.00011636,2]
[361141537,1747302646780,-320.81203557,0.00011636,2]
[361141538,1747302647699,-457.43,0.0001138,2]
[361141539,1747302647709,-400.0,0.0001138,2]
[361141540,1747302647721,-1000.0,0.00011635,2]
[361141541,1747302647731,-400.0,0.00011635,2]
[361141542,1747302647741,-79.18796443,0.00011636,2]
[361141543,1747302647751,-433.87340998,0.00011636,2]
[361141544,1747302647761,-400.0,0.00011636,2]
[361141545,1747302647771,-400.0,0.00011636,2]
[361141546,1747302647782,-264.28833036,0.00011636,2]
[361141547,1747302647792,-367.17348829,0.00011636,2]
[361141548,1747302647802,-375.41088928,0.00011636,2]
[361141549,1747302647811,-400.0,0.00011636,2]
[361141550,1747302647821,-400.0,0.00011636,2]
[361141551,1747302647832,-461.28,0.00011636,2]
[361141552,1747302647842,-566.79,0.00011636,2]
[361141553,1747302647852,-400.0,0.00011636,2]
[361141554,1747302647862,-400.0,0.00011636,2]
[361141555,1747302647872,-400.0,0.00011636,2]
[361141556,1747302647882,-400.0,0.00011636,2]
[361141557,1747302647891,-400.0,0.00011636,2]
[361141558,1747302647902,-400.0,0.00011636,2]
[361141559,1747302647911,-400.0,0.00011636,2]
[361141560,1747302647922,-400.0,0.00011636,2]
[361141561,1747302647931,-400.0,0.00011636,2]
[361141562,1747302647942,-400.0,0.00011636,2]
[361141563,1747302647951,-400.0,0.00011636,2]
[361141564,1747302647962,-400.0,0.00011636,2]
[361141565,1747302647971,-300.94722243,0.00011636,2]
[361141566,1747302647981,-400.0,0.00011636,2]
[361141567,1747302647991,-406.44117344,0.00011636,2]
[361141568,1747302648001,-275.13233932,0.00011636,2]
[361141569,1747302648011,-400.0,0.00011636,2]
[361141570,1747302648021,-400.0,0.00011636,2]
[361141571,1747302648031,-400.0,0.00011636,2]
[361141572,1747302648041,-280.86851802,0.00011636,2]
[361141573,1747302648051,-400.0,0.00011636,2]
[361141574,1747302648061,-670.01,0.00011636,2]
[361141575,1747302648071,-405.70898594,0.00011636,2]
[361141576,1747302648080,-400.0,0.00011636,2]
[361141577,1747302648090,-400.0,0.00011636,2]
[361141578,1747302648100,-400.0,0.00011636,2]
[361141579,1747302648110,-400.0,0.00011636,2]
[361141580,1747302648120,-400.0,0.00011636,2]
[361141581,1747302648130,-400.0,0.00011636,2]
[361141582,1747302648140,-677.14,0.00011636,2]
[361141583,1747302648149,-400.0,0.00011636,2]
[361141584,1747302648159,-400.0,0.00011636,2]
[361141585,1747302648170,-400.0,0.00011636,2]
[361141586,1747302648181,-400.0,0.00011636,2]
[361141587,1747302648194,-400.0,0.00011636,2]
[361141588,1747302648203,-400.0,0.00011636,2]
[361141589,1747302648214,-400.0,0.00011636,2]
[361141590,1747302648224,-400.0,0.00011636,2]
[361141591,1747302648234,-555.45,0.00011636,2]
[361141592,1747302648244,-400.0,0.00011636,2]
[361141593,1747302648254,-400.0,0.00011636,2]
[361141594,1747302648265,-621.14,0.00011636,2]
[361141595,1747302648275,-400.0,0.00011636,2]
[361141596,1747302648284,-400.0,0.00011636,2]
[361141597,1747302648294,-400.0,0.00011636,2]
[361141598,1747302648303,-400.0,0.00011636,2]
[361141599,1747302648313,-400.0,0.00011636,2]
[361141600,1747302648323,-400.0,0.00011636,2]
[361141601,1747302648332,-1203.42,0.00011636,2]
[361141602,1747302648342,-515.76605733,0.00011636,2]
[361141603,1747302648352,-614.81,0.00011636,2]
[361141604,1747302648362,-400.0,0.00011636,2]
[361141605,1747302648372,-400.0,0.00011636,2]
[361141606,1747302648382,-400.0,0.00011636,2]
[361141607,1747302648392,-400.0,0.00011636,2]
[361141608,1747302648401,-400.0,0.00011636,2]
[361141609,1747302648411,-400.0,0.00011636,2]
[361141610,1747302648421,-400.0,0.00011636,2]
[361141611,1747302648431,-918.65,0.00011636,2]
[361141612,1747302648637,-400.0,0.00011636,2]
[361141613,1747302648647,-579.85,0.00011636,2]
[361141614,1747302648657,-400.0,0.00011636,2]
[361141615,1747302648667,-824.65,0.00011636,2]
[361141616,1747302648677,-539.91,0.00011636,2]
[361141617,1747302648688,-400.0,0.00011636,2]
[361141618,1747302648697,-400.0,0.00011636,2]
[361141619,1747302648707,-400.0,0.00011636,2]
[361141620,1747302648717,-581.38,0.00011636,2]
[361141621,1747302648726,-400.0,0.00011636,2]
[361141622,1747302648736,-430.62,0.00011636,2]
[361141623,1747302648746,-400.0,0.00011636,2]
[361141624,1747302648756,-400.0,0.00011636,2]
[361141625,1747302648767,-400.0,0.00011636,2]
[361141626,1747302648777,-400.0,0.00011636,2]
[361141627,1747302648787,-400.0,0.00011636,2]
[361141628,1747302648796,-504.81,0.00011636,2]
[361141629,1747302648807,-400.0,0.00011636,2]
[361141630,1747302648817,-400.0,0.00011636,2]
[361141631,1747302648827,-613.76,0.00011636,2]
[361141632,1747302648837,-400.13459991,0.00011636,2]
[361141633,1747302648847,-507.47,0.00011636,2]
[361141634,1747302648858,-400.0,0.00011636,2]
[361141635,1747302648868,-400.0,0.00011636,2]
[361141636,1747302648878,-400.0,0.00011636,2]
[361141637,1747302648888,-326.89522913,0.00011636,2]
[361141638,1747302648898,-400.0,0.00011636,2]
[361141639,1747302648908,-485.9,0.00011636,2]
[361141640,1747302648918,-400.0,0.00011636,2]
[361141641,1747302648928,-400.0,0.00011636,2]
[361141642,1747302648940,-400.0,0.00011636,2]
[361141643,1747302648950,-400.0,0.00011636,2]
[361141644,1747302648960,-400.0,0.00011636,2]
[361141645,1747302648970,-400.0,0.00011636,2]
[361141646,1747302648979,-400.0,0.00011636,2]
[361141647,1747302648989,-400.0,0.00011636,2]
[361141648,1747302648998,-1116.39,0.00011636,2]
[361141649,1747302649008,-400.0,0.00011636,2]
[361141650,1747302649018,-400.0,0.00011636,2]
[361141651,1747302649027,-400.0,0.00011636,2]
[361141652,1747302649037,-469.96,0.00011636,2]
[361141653,1747302649047,-400.0,0.00011636,2]
[361141654,1747302649058,-899.41,0.00011636,2]
[361141655,1747302649068,-400.0,0.00011636,2]
[361141656,1747302649078,-412.57,0.00011636,2]
[361141657,1747302649089,-400.0,0.00011636,2]
[361141658,1747302649099,-707.63,0.00011636,2]
[361141659,1747302649109,-400.0,0.00011636,2]
[361141660,1747302649119,-400.0,0.00011636,2]
[361141661,1747302649129,-400.0,0.00011636,2]
[361141662,1747302649139,-400.0,0.00011636,2]
[361141663,1747302649149,-400.0,0.00011636,2]
[361141664,1747302649159,-815.51,0.00011636,2]
[361141665,1747302649169,-400.0,0.00011636,2]
[361141666,1747302649180,-412.78956047,0.00011636,2]
[361141667,1747302649191,-400.0,0.00011636,2]
[361141668,1747302649201,-400.0,0.00011636,2]
[361141669,1747302649212,-400.0,0.00011636,2]
[361141670,1747302649223,-447.77,0.00011636,2]
[361141671,1747302649233,-400.0,0.00011636,2]
[361141672,1747302649242,-400.0,0.00011636,2]
[361141673,1747302649253,-406.35806653,0.00011636,2]
[361141674,1747302649263,-566.61,0.00011636,2]
[361141675,1747302649274,-400.0,0.00011636,2]
[361141676,1747302649284,-400.0,0.00011636,2]
[361141677,1747302649294,-400.0,0.00011636,2]
[361141678,1747302649304,-400.0,0.00011636,2]
[361141679,1747302649314,-400.0,0.00011636,2]
[361141680,1747302649324,-512.67,0.00011636,2]
[361141681,1747302649334,-400.0,0.00011636,2]
[361141682,1747302649344,-400.0,0.00011636,2]
[361141683,1747302649354,-467.04,0.00011636,2]
[361141684,1747302649364,-400.0,0.00011636,2]
[361141685,1747302649374,-400.0,0.00011636,2]
[361141686,1747302649384,-846.47,0.00011636,2]
[361141687,1747302649393,-500.0,0.00011636,2]
[361141688,1747302649403,-400.0,0.00011636,2]
[361141689,1747302649413,-400.0,0.00011636,2]
[361141690,1747302649423,-400.0,0.00011636,2]
[361141691,1747302649432,-400.0,0.00011636,2]
[361141692,1747302649442,-401.07700831,0.00011636,2]
[361141693,1747302649452,-478.08,0.00011636,2]
[361141694,1747302649462,-403.96584222,0.00011636,2]
[361141695,1747302649471,-798.09,0.00011636,2]
[361141696,1747302649481,-512.65,0.00011636,2]
[361141697,1747302649491,-400.0,0.00011636,2]
[361141698,1747302649501,-400.0,0.00011636,2]
[361141699,1747302649511,-400.0,0.00011636,2]
[361141700,1747302649521,-422.26196324,0.00011636,2]
[361141701,1747302649531,-434.98,0.00011636,2]
[361141702,1747302649540,-400.0,0.00011636,2]
[361141703,1747302649550,-400.0,0.00011636,2]
[361141704,1747302649560,-400.0,0.00011636,2]
[361141705,1747302649571,-400.0,0.00011636,2]
[361141706,1747302649580,-469.3,0.00011636,2]
[361141707,1747302649590,-400.0,0.00011636,2]
[361141708,1747302649600,-400.0,0.00011636,2]
[361141709,1747302649610,-400.0,0.00011636,2]
[361141710,1747302649620,-402.54266634,0.00011636,2]
[361141711,1747302649630,-619.89,0.00011636,2]
[361141712,1747302649640,-400.0,0.00011636,2]
[361141713,1747302649650,-403.62,0.00011636,2]
[361141714,1747302649659,-400.0,0.00011636,2]
[361141715,1747302649670,-400.0,0.00011636,2]
[361141716,1747302649680,-397.50837789,0.00011636,2]
[361141717,1747302649690,-1282.77,0.00011636,2]
[361141718,1747302649699,-1033.38,0.00011636,2]
[361141719,1747302649709,-405.69651418,0.00011636,2]
[361141720,1747302649719,-400.0,0.00011636,2]
[361141721,1747302649728,-467.10483271,0.00011636,2]
[361141722,1747302649738,-400.0,0.00011636,2]
[361141723,1747302649748,-789.52,0.00011636,2]
[361141724,1747302649757,-400.0,0.00011636,2]
[361141725,1747302649767,-400.0,0.00011636,2]
[361141726,1747302649777,-400.0,0.00011636,2]
[361141727,1747302649786,-400.0,0.00011636,2]
[361141728,1747302649795,-400.0,0.00011636,2]
[361141729,1747302649806,-400.0,0.00011636,2]
[361141730,1747302649815,-400.0,0.00011636,2]
[361141731,1747302649825,-411.16,0.00011636,2]
[361141732,1747302649834,-285.25445059,0.00011636,2]
[361141733,1747302650198,-114.74554941,0.00011636,2]
[361141734,1747302650209,-516.67,0.00011636,2]
[361141735,1747302650219,-400.0,0.00011636,2]
[361141736,1747302650228,-406.43634502,0.00011636,2]
[361141737,1747302650239,-400.0,0.00011636,2]
[361141738,1747302650249,-654.06,0.00011636,2]
[361141739,1747302650259,-400.0,0.00011636,2]
[361141740,1747302650271,-468.97,0.00011636,2]
[361141741,1747302650281,-411.07037638,0.00011636,2]
[361141742,1747302650290,-400.0,0.00011636,2]
[361141743,1747302650300,-400.0,0.00011636,2]
[361141744,1747302650311,-297.5548236,0.00011636,2]
[361141745,1747302650324,-464.9651764,0.00011636,2]
[361141746,1747302650335,-400.0,0.00011636,2]
[361141747,1747302650345,-400.0,0.00011636,2]
[361141748,1747302650355,-400.0,0.00011636,2]
[361141749,1747302650365,-414.57029416,0.00011636,2]
[361141750,1747302650374,-498.63411174,0.00011636,2]
[361141751,1747302650382,-730.6,0.00011636,2]
[361141752,1747302650392,-611.15,0.00011636,2]
[361141753,1747302650401,-486.20697488,0.00011636,2]
[361141754,1747302650410,-400.0,0.00011636,2]
[361141755,1747302650420,-550.93,0.00011636,2]
[361141756,1747302650429,-593.98,0.00011636,2]
[361141757,1747302650439,-705.95,0.00011636,2]
[361141758,1747302650448,-400.0,0.00011636,2]
[361141759,1747302650458,-400.0,0.00011636,2]
[361141760,1747302650467,-400.0,0.00011636,2]
[361141761,1747302650477,-464.33976033,0.00011636,2]
[361141762,1747302650486,-400.0,0.00011636,2]
[361141763,1747302650496,-1038.11,0.00011636,2]
[361141764,1747302650505,-400.0,0.00011636,2]
[361141765,1747302650515,-400.0,0.00011636,2]
[361141766,1747302650524,-767.89,0.00011636,2]
[361141767,1747302650533,-400.0,0.00011636,2]